Workbook

Sheet Лист1
A1: Школа | C1: ГБОУ "Маскаринская школа- интернат для детей с ограниченными возможностями здоровья" | F1: Утвердил: | G1: должность | H1: директор
A2: Типовое примерное меню приготавливаемых блюд | G2: фамилия | H2: Сабитов Ш. Н.
A3: Возрастная категория | E3: 7-11 лет | G3: дата | H3: 23 | I3: 5 | J3: 25
H4: день | I4: месяц | J4: год
A5: Неделя | B5: День недели | C5: Прием пищи | D5: Раздел меню | E5: Блюда | F5: Вес блюда, г | G5: Белки | H5: Жиры | I5: Углеводы | J5: Калорийность | K5: Цена
A6: 1 | B6: 5 | C6: Завтрак | D6: гор.блюдо | E6: Каша манная мол. | F6: 200/10 | G6: 6 | H6: 5 | I6: 30.8 | J6: 200 | K6: 12.25
D7: гор.напиток | E7: Чай слад. | F7: 200 | G7: 0.1 | H7: 0 | I7: 9.9 | J7: 39.9 | K7: 1.45
D8: хлеб | E8: Хлеб пшеничный | F8: 120 | G8: 3.1 | H8: 0.2 | I8: 20.1 | J8: 284.1 | K8: 8.6
D9: масло слив. | E9: Масло слив. | F9: 10 | G9: 0.4 | H9: 62.5 | I9: 0.8 | J9: 205 | K9: 9.13
D10: фрукты | E10: Апельсин | F10: 100 | G10: 1.4 | H10: 0.3 | I10: 8.1 | J10: 36 | K10: 15.14
D13: итого | F13: =SUM(F6:F12) -> 430 | G13: =SUM(G6:G12) -> 11 | H13: =SUM(H6:H12) -> 68 | I13: =SUM(I6:I12) -> 69.7 | J13: =SUM(J6:J12) -> 765 | K13: =SUM(K6:K12) -> 46.57
A14: =A6 -> 1 | B14: =B6 -> 5 | C14: Завтрак 2 | D14: фрукты | E14: Яблоки св. | F14: 100 | G14: 0.6 | H14: 0.6 | I14: 14.3 | J14: 69 | K14: 10.15
D15: напиток | E15: Компот из с/ф | F15: 200 | G15: 4 | H15: 0.06 | I15: 35.2 | J15: 110 | K15: 2.53
D16: выпечка | E16: Запеканка творожная | F16: 150/15 | G16: 20.44 | H16: 20 | I16: 29.6 | J16: 325 | K16: 51.04
D17: хлеб бел. | E17: Хлеб пшеничный | F17: 120 | G17: 3.1 | H17: 0.2 | I17: 20.1 | J17: 284.1 | K17: 8.6
D18: итого | F18: =SUM(F14:F17) -> 420 | G18: =SUM(G14:G17) -> 28.14 | H18: =SUM(H14:H17) -> 20.86 | I18: =SUM(I14:I17) -> 99.2 | J18: =SUM(J14:J17) -> 787.7 | K18: =SUM(K14:K17) -> 72.32
A19: =A6 -> 1 | B19: =B6 -> 5 | C19: Обед | D19: закуска | E19: Свекла вар. дольками | F19: 100 | G19: 1.17 | H19: 6.96 | I19: 8.8 | J19: 60 | K19: 4
D20: 1 блюдо | E20: Суп крестьян с пшеном со смет | F20: 250/15 | G20: 10 | H20: 8.63 | I20: 7.9 | J20: 290 | K20: 20.97
D21: 2 блюдо | E21: Овощное рагу с мясом говяд. | F21: 200/5 | G21: 3.46 | H21: 6.26 | I21: 9.98 | J21: 310 | K21: 25.51
D22: гарнир
D23: напиток | E23: Сок | F23: 200 | G23: 0.8 | H23: 0 | I23: 23 | J23: 94 | K23: 13
D24: хлеб бел.
D25: хлеб черн. | E25: Хлеб "Дарницкий" | F25: 80 | G25: 2.6 | H25: 0.4 | I25: 17 | J25: 164.8 | K25: 5.19
D28: итого | F28: =SUM(F19:F27) -> 380 | G28: =SUM(G19:G27) -> 18.03 | H28: =SUM(H19:H27) -> 22.25 | I28: =SUM(I19:I27) -> 66.68 | J28: =SUM(J19:J27) -> 918.8 | K28: =SUM(K19:K27) -> 68.67
A29: =A6 -> 1 | B29: =B6 -> 5 | C29: Полдник | D29: кисломол.
D30: фрукты
D33: итого | F33: =SUM(F29:F32) -> 0 | G33: =SUM(G29:G32) -> 0 | H33: =SUM(H29:H32) -> 0 | I33: =SUM(I29:I32) -> 0 | J33: =SUM(J29:J32) -> 0
A34: =A6 -> 1 | B34: =B6 -> 5 | C34: Ужин | D34: хлеб черн. | E34: Хлеб "Дарницкий" | F34: 80 | G34: 2.6 | H34: 0.4 | I34: 17 | J34: 164.8 | K34: 5.19
D35: гор.напиток | E35: Какао с мол. | F35: 200 | G35: 4.62 | H35: 4.02 | I35: 43.8 | J35: 135 | K35: 8.37
D36: гарнир | E36: Рыба запеченная | F36: 100 | G36: 13.7 | H36: 6.2 | I36: 4.4 | J36: 153 | K36: 105.64
D37: 2 блюдо | E37: Гороховое пюре | F37: 200 | G37: 14.8 | H37: 12 | I37: 28.5 | J37: 200 | K37: 5
D38: масло слив. | E38: Масло слив. | F38: 15 | G38: 0.4 | H38: 62.5 | I38: 0.8 | J38: 205 | K38: 9.63
D40: итого | F40: =SUM(F34:F39) -> 595 | G40: =SUM(G34:G39) -> 36.12 | H40: =SUM(H34:H39) -> 85.12 | I40: =SUM(I34:I39) -> 94.5 | J40: =SUM(J34:J39) -> 857.8 | K40: =SUM(K34:K39) -> 133.83
A41: =A6 -> 1 | B41: =B6 -> 5 | C41: Ужин 2 | D41: кисломол. | E41: Ряженка | F41: 200 | G41: 12 | H41: 2 | I41: 8.4 | J41: 134 | K41: 24.08
D42: фрукты | E42: Яблоки св. | F42: 100 | G42: 0.6 | H42: 0.6 | I42: 14.3 | J42: 68.6 | K42: 10.15
D43: напиток
D47: итого | F47: =SUM(F41:F46) -> 300 | G47: =SUM(G41:G46) -> 12.6 | H47: =SUM(H41:H46) -> 2.6 | I47: =SUM(I41:I46) -> 22.7 | J47: =SUM(J41:J46) -> 202.6 | K47: =SUM(K41:K46) -> 34.23
A48: =A6 -> 1 | B48: =B6 -> 5 | C48: Итого за день: | F48: =F13+F18+F28+F33+F40+F47 -> 2125 | G48: =G13+G18+G28+G33+G40+G47 -> 105.89 | H48: =H13+H18+H28+H33+H40+H47 -> 198.83 | I48: =I13+I18+I28+I33+I40+I47 -> 352.78 | J48: =J13+J18+J28+J33+J40+J47 -> 3531.9 | K48: =K13+K18+K28+K33+K40+K47 -> 355.62
